bitfinex/quotes_BTCUSD_20241101
["timestamp","ask_amount","ask_price","bid_price","bid_amount"]
[1730483357854,0.287026,69680.0,69672.0,0.2151571]
[1730483358068,0.15679574,69679.0,69671.0,0.28706]
[1730483358286,0.01328074,69678.0,69670.0,0.001]
[1730483358527,0.286989,69690.0,69676.0,0.14352]
[1730483358528,0.01328074,69677.0,69676.0,0.14352]
[1730483358756,0.01328074,69677.0,69672.0,0.287059]
[1730483358757,0.01328074,69677.0,69675.0,0.143522]
[1730483358996,0.02126381,69681.0,69680.0,0.223013]
[1730483359230,0.2151571,69685.0,69681.0,0.287021]
[1730483359460,0.2151571,69685.0,69684.0,0.143504]
[1730483359681,0.03458281,69685.0,69684.0,0.143504]
[1730483360734,0.03458281,69685.0,69684.0,0.145504]
[1730483361386,0.2151571,69689.0,69684.0,0.002]
[1730483361643,0.01331601,69685.0,69684.0,0.002]
[1730483361858,0.17811963,69688.0,69684.0,0.002]
[1730483362103,0.03462163,69687.0,69684.0,0.002]
[1730483362355,0.03462163,69686.0,69682.0,0.143508]
[1730483362581,0.04794022,69685.0,69682.0,0.143508]
[1730483362809,0.04794022,69685.0,69684.0,0.002]
[1730483363037,0.04794383,69685.0,69684.0,0.002]
[1730483363252,0.04794383,69685.0,69684.0,0.143504]
[1730483363687,0.04794383,69685.0,69684.0,0.144504]
[1730483363948,0.04794383,69685.0,69684.0,0.143504]
[1730483364401,0.04794383,69685.0,69684.0,0.144504]
[1730483365085,0.145129,69694.0,69684.0,0.144504]
[1730483365086,0.145129,69694.0,69687.0,0.143497]
[1730483365304,0.02131249,69693.0,69684.0,0.291009]
[1730483365541,0.145129,69694.0,69684.0,0.291009]
[1730483365542,0.04795268,69692.0,69688.0,0.143496]
[1730483365786,0.04795268,69691.0,69686.0,0.1435]
[1730483365996,0.04795268,69691.0,69684.0,0.289009]
[1730483365997,0.19144568,69690.0,69684.0,0.147504]
[1730483366207,0.04795268,69689.0,69685.0,0.143502]
[1730483366416,0.14349,69691.0,69685.0,0.143502]
[1730483366417,0.04795268,69688.0,69685.0,0.143502]
[1730483366626,0.04795268,69687.0,69686.0,0.1435]
[1730483368162,0.04895268,69687.0,69686.0,0.1435]
[1730483368375,0.04795268,69687.0,69686.0,0.1435]
[1730483368657,0.01332101,69693.0,69687.0,0.286993]
[1730483368869,0.03463031,69692.0,69688.0,0.143495]
[1730483369093,0.04794966,69691.0,69688.0,0.143495]
[1730483369516,0.01332101,69693.0,69688.0,0.143495]
[1730483369517,0.04794873,69690.0,69688.0,0.143495]
[1730483369747,0.01332101,69693.0,69689.0,0.143494]
[1730483369957,0.0346279,69692.0,69689.0,0.143494]
[1730483370174,0.0346279,69691.0,69689.0,0.143494]
[1730483370383,0.0346279,69690.0,69689.0,0.143494]
[1730483371056,0.0346279,69690.0,69689.0,0.147494]
[1730483371296,0.0346279,69690.0,69688.0,0.143496]
[1730483371506,0.0346279,69690.0,69687.0,0.286993]
[1730483371507,0.01332101,69693.0,69689.0,0.143494]
[1730483371739,0.001,69690.0,69689.0,0.147494]
[1730483372204,0.03463975,69690.0,69689.0,0.147494]
[1730483372437,0.03463975,69690.0,69689.0,0.152494]
[1730483372902,0.03463975,69690.0,69689.0,0.228694]
[1730483373120,0.01332101,69693.0,69692.0,0.143488]
[1730483373345,0.01332101,69693.0,69692.0,0.41463561]
[1730483374734,0.01432101,69693.0,69692.0,0.43063561]
[1730483375212,0.01432101,69693.0,69692.0,0.42863561]
[1730483375427,0.01532101,69693.0,69692.0,0.44263561]
[1730483375851,0.002,69693.0,69692.0,0.44263561]
[1730483379440,0.002,69693.0,69692.0,0.94263561]
[1730483380614,0.002,69693.0,69692.0,0.528]
[1730483380832,0.145486,69693.0,69692.0,0.528]
[1730483381059,0.26542638,69693.0,69692.0,0.528]
[1730483381281,0.26542435,69693.0,69692.0,0.528]
[1730483381510,0.26342435,69693.0,69692.0,0.5]
[1730483381725,0.26342435,69693.0,69692.0,0.514]
[1730483381946,0.26342435,69693.0,69692.0,0.527]
[1730483381947,0.48058145,69693.0,69692.0,0.527]
[1730483382161,0.43342435,69693.0,69692.0,0.527]
[1730483382373,0.43242435,69693.0,69692.0,0.513]
[1730483383298,0.43242435,69693.0,69692.0,0.5]
[1730483383299,0.43142435,69693.0,69692.0,0.5]
[1730483383755,0.45442435,69693.0,69692.0,0.502]
[1730483383998,0.44042435,69693.0,69692.0,0.501]
[1730483384234,0.54542435,69693.0,69692.0,0.501]
[1730483384443,0.54542435,69693.0,69692.0,0.001]
[1730483384674,0.54142435,69693.0,69692.0,0.001]
[1730483384899,0.55542435,69693.0,69692.0,0.002]
[1730483385120,0.54542435,69693.0,69692.0,0.001]
[1730483385351,0.55542435,69693.0,69692.0,0.002]
[1730483386585,0.55542435,69693.0,69692.0,0.001]
[1730483386586,0.64531619,69693.0,69692.0,0.001]
[1730483386837,0.64531619,69693.0,69688.0,0.000822]
[1730483386838,0.143494,69689.0,69688.0,0.000822]
[1730483387072,0.54925156,69689.0,69688.0,0.000822]
[1730483387309,0.57225156,69689.0,69688.0,0.000822]
[1730483387524,0.65305156,69689.0,69688.0,0.000822]
[1730483388165,0.69559905,69689.0,69688.0,0.000822]
[1730483388387,0.83407635,69689.0,69688.0,0.000822]
[1730483388607,0.84807635,69689.0,69688.0,0.001822]
[1730483388823,0.20110395,69689.0,69688.0,0.002822]
[1730483389054,0.17980552,69689.0,69688.0,0.002822]
[1730483389956,0.15680552,69689.0,69688.0,0.000822]
[1730483390444,0.17980552,69689.0,69688.0,0.002822]
[1730483390663,0.03631152,69689.0,69688.0,0.001822]
[1730483390891,0.18480552,69689.0,69688.0,0.001822]
[1730483391118,0.19380552,69689.0,69688.0,0.002822]
[1730483391988,0.21094894,69689.0,69688.0,0.002822]
[1730483392200,0.23224737,69689.0,69688.0,0.002822]
[1730483393134,0.21510395,69689.0,69688.0,0.002822]
[1730483393581,0.19380552,69689.0,69688.0,0.002822]
[1730483398144,0.55246077,69689.0,69688.0,0.002822]
[1730483398360,0.5737592,69689.0,69688.0,0.002822]
[1730483398787,0.57372185,69689.0,69688.0,0.002822]
[1730483399011,0.71219915,69689.0,69688.0,0.002822]
[1730483400585,0.55072185,69689.0,69688.0,0.002822]
[1730483400804,0.45351384,69689.0,69688.0,0.002822]
[1730483401452,0.47651384,69689.0,69688.0,0.002822]
[1730483401921,0.45351384,69689.0,69688.0,0.002822]
[1730483402802,0.07156459,69689.0,69688.0,0.002822]
[1730483403045,0.037,69689.0,69688.0,0.002822]
[1730483403273,0.05029289,69689.0,69688.0,0.002822]
[1730483403496,0.05029289,69689.0,69688.0,0.146318]
[1730483403711,0.04129289,69689.0,69688.0,0.145318]
[1730483403925,0.04257189,69690.0,69689.0,0.143494]
[1730483404143,0.05586818,69690.0,69689.0,0.143494]
[1730483404996,0.01329629,69690.0,69688.0,0.144318]
[1730483405235,0.02292317,69694.0,69689.0,0.143494]
[1730483405450,0.01330878,69693.0,69689.0,0.143494]
[1730483405690,0.01330878,69692.0,69689.0,0.143494]
[1730483405900,0.01330878,69691.0,69689.0,0.286987]
[1730483406107,0.001644,69694.0,69693.0,0.143486]
[1730483406317,0.01496094,69694.0,69692.0,0.143488]
[1730483406536,0.01331694,69693.0,69692.0,0.143488]
[1730483406745,0.001644,69694.0,69693.0,0.143486]
[1730483406981,0.001644,69694.0,69693.0,0.224686]
[1730483409577,0.002644,69694.0,69693.0,0.241686]
[1730483410617,0.002644,69694.0,69693.0,0.38301059]
[1730483410862,0.002644,69694.0,69693.0,0.38014125]
[1730483413616,0.002644,69694.0,69693.0,0.46224125]
[1730483413824,0.001644,69694.0,69693.0,0.47226982]
[1730483414003,0.002644,69694.0,69693.0,0.48626982]
[1730483415170,0.002644,69694.0,69693.0,0.47226982]
[1730483415406,0.2151571,69706.0,69705.0,0.143461]
[1730483415639,0.2151571,69706.0,69705.0,0.36011625]
[1730483416088,0.001644,69707.0,69706.0,0.143459]
[1730483416304,0.001644,69707.0,69706.0,0.28191425]
[1730483416530,0.001644,69707.0,69706.0,0.38021425]
[1730483417462,0.001644,69707.0,69706.0,0.3841898]
[1730483418337,0.001644,69707.0,69706.0,0.8841898]
[1730483418579,1e-06,69707.0,69706.0,1.0918898]
[1730483418783,1e-06,69707.0,69706.0,1.0888898]
[1730483419258,1e-06,69707.0,69706.0,1.1168898]
[1730483419466,1e-06,69707.0,69706.0,1.1028898]
[1730483419679,1e-06,69707.0,69706.0,1.0888898]
[1730483419898,1e-06,69707.0,69706.0,1.1028898]
[1730483420533,1e-06,69707.0,69706.0,1.1168898]
[1730483421006,0.001644,69721.0,69709.0,0.286906]
[1730483421262,0.2151571,69723.0,69722.0,0.439026]
[1730483421460,0.2151571,69723.0,69720.0,0.13269236]
[1730483421461,0.001644,69728.0,69727.0,0.266416]
[1730483421681,0.001644,69728.0,69727.0,0.439016]
[1730483421910,0.001626,69743.0,69730.0,0.26641]
[1730483422120,0.001626,69743.0,69733.0,0.143404]
[1730483422329,0.001626,69743.0,69733.0,0.38185925]
[1730483422555,0.001626,69739.0,69733.0,0.38185925]
[1730483423455,0.001626,69739.0,69733.0,0.39585925]
[1730483423704,0.001626,69739.0,69733.0,0.38185925]
[1730483423917,1e-06,69736.0,69735.0,0.48009236]
[1730483424141,1e-06,69736.0,69735.0,0.48585525]
[1730483425769,1e-06,69736.0,69735.0,0.61854761]
[1730483425995,1e-06,69736.0,69735.0,0.48585525]
[1730483426197,1e-06,69736.0,69735.0,0.51385525]
[1730483427979,1e-06,69736.0,69735.0,0.51958925]
[1730483428209,1e-06,69736.0,69735.0,0.49658925]
[1730483428879,1e-06,69736.0,69735.0,0.51958925]
[1730483430659,1e-06,69736.0,69735.0,0.65228161]
[1730483430876,0.001642,69747.0,69746.0,0.266377]
[1730483431126,0.001642,69747.0,69746.0,0.48499902]
[1730483431363,0.3135571,69787.0,69754.0,0.1812]
[1730483431601,0.3135571,69787.0,69763.0,0.23269236]
[1730483431823,0.3135571,69787.0,69763.0,0.37603436]
[1730483432054,0.2151571,69787.0,69774.0,0.143319]
[1730483432276,0.2151571,69787.0,69776.0,0.143315]
[1730483432586,0.2151571,69787.0,69776.0,0.14618063]
[1730483432618,0.2151571,69787.0,69776.0,0.143315]
[1730483432838,0.2151571,69787.0,69776.0,0.14618063]
[1730483433205,0.2151571,69787.0,69776.0,0.28463588]
[1730483433439,0.2151571,69787.0,69776.0,0.28177025]
[1730483433642,0.2151571,69787.0,69776.0,0.29477025]
[1730483434115,0.2151571,69795.0,69776.0,0.55046261]
[1730483434333,0.2151571,69795.0,69776.0,0.48424761]
[1730483434559,0.2151571,69795.0,69792.0,0.27597436]
[1730483435056,0.2151571,69818.0,69792.0,0.39897436]
[1730483435268,0.2151571,69805.0,69792.0,0.37597436]
[1730483435722,0.2151571,69805.0,69792.0,0.51442961]
[1730483435949,0.2151571,69805.0,69792.0,0.28173725]
[1730483436403,0.2151571,69805.0,69792.0,0.29573725]
[1730483436619,0.2151571,69805.0,69792.0,0.78173725]
[1730483437480,0.2151571,69805.0,69792.0,0.79573725]
[1730483437919,0.2151571,69804.0,69792.0,0.90473725]
[1730483438149,0.2151571,69804.0,69792.0,0.91873725]
[1730483438384,0.2151571,69811.0,69792.0,0.91873725]
[1730483438385,0.2151571,69811.0,69792.0,0.93273725]
[1730483438631,0.2151571,69803.0,69792.0,0.93273725]
[1730483438841,0.2151571,69803.0,69792.0,0.94840519]
[1730483439063,0.2151571,69803.0,69792.0,0.96240519]
[1730483439279,0.2151571,69803.0,69792.0,0.97640519]
[1730483439482,0.2151571,69803.0,69792.0,0.96240519]
[1730483439915,0.2151571,69803.0,69792.0,0.97640519]
[1730483440301,0.2151571,69811.0,69792.0,1.05310519]
[1730483440566,0.2151571,69811.0,69792.0,1.15120519]
[1730483440996,0.2151571,69811.0,69805.0,0.27594836]
[1730483441225,0.2151571,69811.0,69805.0,0.28171125]
[1730483441679,0.2151571,69818.0,69805.0,0.30471125]
[1730483442751,0.2151571,69818.0,69805.0,0.33271125]
[1730483443172,0.2151571,69818.0,69805.0,0.86237919]
[1730483443654,0.2151571,69818.0,69805.0,0.79571125]
[1730483444121,0.077,69831.0,69805.0,0.78171125]
[1730483444334,0.2151571,69817.0,69805.0,0.78171125]
[1730483444539,0.2151571,69817.0,69805.0,0.80971125]
[1730483444749,0.2151571,69817.0,69805.0,0.79571125]
[1730483445167,0.2151571,69817.0,69805.0,0.78572232]
[1730483445445,0.2151571,69817.0,69805.0,0.81372232]
[1730483445668,0.2151571,69817.0,69805.0,0.79972232]
[1730483446117,0.2151571,69817.0,69805.0,0.81372232]
[1730483447040,0.2151571,69817.0,69805.0,0.80971125]
[1730483447259,0.0774,69812.0,69805.0,0.65245525]
[1730483447735,0.01321191,69811.0,69805.0,0.79571125]
[1730483447982,0.0774,69812.0,69805.0,0.79571125]
[1730483448207,0.0774,69812.0,69805.0,0.80971125]
[1730483448427,0.0774,69812.0,69805.0,0.78171125]
[1730483448864,0.0774,69812.0,69805.0,0.80271125]
[1730483449101,0.0774,69812.0,69805.0,0.64945525]
[1730483449337,0.0774,69812.0,69805.0,0.5]
[1730483449554,0.143244,69811.0,69805.0,0.5]
[1730483449762,0.143244,69811.0,69805.0,0.511]
[1730483450003,0.0774,69812.0,69805.0,0.511]
[1730483450224,0.01403613,69806.0,69805.0,0.511]
[1730483450664,0.0140452,69806.0,69805.0,0.521]
[1730483450875,0.0140452,69806.0,69805.0,0.5]
[1730483451327,0.0140452,69806.0,69805.0,0.653256]
[1730483451537,0.0140452,69806.0,69805.0,0.506]
[1730483451790,0.03522971,69806.0,69805.0,0.5]
[1730483451994,0.03522971,69806.0,69805.0,0.51]
[1730483452203,0.03522971,69806.0,69805.0,0.648256]
[1730483452641,0.03522971,69806.0,69805.0,0.647256]
[1730483452860,0.03522971,69806.0,69805.0,0.504]
[1730483453075,0.03522971,69806.0,69805.0,0.51]
[1730483453294,0.17848371,69806.0,69805.0,0.51]
[1730483453716,0.17848371,69806.0,69805.0,0.506]
[1730483453904,0.03522971,69806.0,69805.0,0.506]
[1730483454151,0.17848371,69806.0,69805.0,0.504]
[1730483454368,0.03522971,69806.0,69805.0,0.5]
[1730483454583,0.03522971,69806.0,69805.0,0.503]
[1730483454793,0.03622971,69806.0,69805.0,0.646256]
[1730483455007,0.03522971,69806.0,69805.0,0.5]
[1730483455223,0.17848371,69806.0,69805.0,0.5]
[1730483455437,0.17848371,69806.0,69805.0,0.508]
[1730483455695,0.28974099,69806.0,69805.0,0.508]
[1730483455906,0.28974099,69806.0,69805.0,0.5]
[1730483455907,0.13322971,69806.0,69805.0,0.5]
[1730483456120,0.13322971,69806.0,69805.0,0.503]
[1730483456539,0.14649416,69806.0,69805.0,0.503]
[1730483457163,0.14649416,69806.0,69805.0,0.504]
[1730483457416,0.14649416,69806.0,69805.0,0.501]
[1730483457662,0.04849416,69806.0,69805.0,0.5]
[1730483457867,0.01407645,69806.0,69805.0,0.78671125]
[1730483458079,0.000812,69806.0,69805.0,0.505]
[1730483458306,0.000812,69806.0,69805.0,0.5]
[1730483458513,0.000812,69806.0,69805.0,0.644256]
[1730483458717,0.000812,69806.0,69805.0,0.647256]
[1730483458947,0.03535451,69806.0,69805.0,0.646256]
[1730483459158,0.04864009,69806.0,69805.0,0.643256]
[1730483459361,0.01409926,69806.0,69805.0,0.643256]
[1730483459577,0.04864615,69806.0,69805.0,0.646256]
[1730483460007,0.07081857,69806.0,69805.0,0.646256]
[1730483460223,0.04864615,69806.0,69805.0,0.647256]
[1730483460447,0.04864615,69806.0,69805.0,0.78471125]
[1730483460627,0.04864615,69806.0,69805.0,0.78171125]
[1730483460862,0.04864615,69806.0,69805.0,0.78271125]
[1730483461067,0.04864615,69806.0,69805.0,0.78571125]
[1730483461509,0.04864615,69806.0,69805.0,0.78271125]
[1730483461739,0.000812,69806.0,69805.0,0.78171125]
[1730483461943,0.04880462,69806.0,69805.0,0.80471125]
[1730483462355,0.04880462,69806.0,69805.0,0.79271125]
[1730483462797,0.04880462,69806.0,69805.0,0.80471125]
[1730483463012,0.03547334,69806.0,69805.0,0.80471125]
[1730483463253,0.03547334,69806.0,69805.0,0.79371125]
[1730483463466,0.03547334,69806.0,69805.0,1.00531125]
[1730483463690,0.02221881,69822.0,69805.0,1.07721235]
[1730483463909,0.2365135,69821.0,69820.0,0.27591736]
[1730483464338,0.0347041,69821.0,69820.0,0.143225]
[1730483465048,0.0347041,69821.0,69820.0,0.28168025]
[1730483465741,0.03469954,69821.0,69820.0,0.29568025]
[1730483466402,0.03469954,69821.0,69820.0,0.79568025]
[1730483467119,0.03469954,69821.0,69820.0,0.5]
[1730483467352,0.03469954,69821.0,69820.0,0.514]
[1730483468009,0.17792254,69821.0,69820.0,0.514]
[1730483468220,0.22238541,69821.0,69820.0,0.528]
[1730483468642,0.22238541,69821.0,69820.0,0.533]
[1730483468845,0.22238541,69821.0,69820.0,0.5]
[1730483469053,0.22238541,69821.0,69820.0,0.503]
[1730483469408,0.18768587,69821.0,69820.0,0.503]
[1730483469616,0.22238506,69821.0,69820.0,0.503]
[1730483469959,0.22320506,69821.0,69820.0,0.503]
[1730483470099,0.22320506,69821.0,69820.0,0.5]
[1730483470296,0.22320506,69821.0,69820.0,0.501]
[1730483470738,0.22320506,69821.0,69820.0,0.502]
[1730483471352,0.22320506,69821.0,69820.0,0.505]
[1730483471563,0.22320506,69821.0,69820.0,0.503]
[1730483471905,0.22320506,69821.0,69820.0,0.5]
[1730483473157,0.32100506,69821.0,69820.0,0.5]
[1730483473580,0.42100506,69821.0,69820.0,0.501]
[1730483473751,0.63646031,69821.0,69820.0,0.501]
[1730483474110,0.243245,69810.0,69809.0,0.2151571]
[1730483474330,0.59355467,69810.0,69809.0,0.2151571]
[1730483474536,0.143262,69802.0,69801.0,0.2151571]
[1730483474787,0.4491088,69802.0,69801.0,0.2151571]
[1730483474990,0.143276,69795.0,69794.0,0.2151571]
[1730483475401,0.143278,69794.0,69786.0,0.2151571]
[1730483475611,0.16463135,69794.0,69786.0,0.2151571]
[1730483475822,0.19130923,69794.0,69786.0,0.2151571]
[1730483476683,0.19130923,69794.0,69784.0,0.00214883]
[1730483477115,0.19126487,69794.0,69784.0,0.00214883]
[1730483477563,0.30962549,69794.0,69784.0,0.00214883]
[1730483478215,0.30962549,69794.0,69793.0,0.00264]
[1730483478434,0.39627965,69794.0,69793.0,0.00264]
[1730483478656,0.40958733,69794.0,69793.0,0.00164]
[1730483479063,0.41058733,69794.0,69793.0,0.00164]
[1730483479782,0.62794258,69794.0,69793.0,0.00164]
[1730483480712,0.62793622,69794.0,69793.0,0.00164]
[1730483480933,0.62787475,69794.0,69793.0,0.00164]
[1730483481585,0.61457343,69794.0,69793.0,0.00164]
[1730483481864,0.63757343,69794.0,69793.0,0.00164]
[1730483482092,0.6508632,69794.0,69793.0,0.00164]
[1730483482545,0.69338884,69794.0,69793.0,0.00164]
[1730483482756,0.6508632,69794.0,69793.0,0.00164]
[1730483483455,0.29214733,69794.0,69793.0,0.00164]
[1730483483913,0.1708676,69794.0,69793.0,0.00164]
[1730483484130,0.19209798,69794.0,69793.0,0.00164]
[1730483484392,0.19207095,69794.0,69793.0,0.00164]
[1730483485015,0.4305262,69794.0,69793.0,0.00164]
[1730483485224,0.41724927,69794.0,69793.0,0.00164]
[1730483486605,0.55572657,69794.0,69793.0,0.00164]
[1730483487069,0.56899202,69794.0,69793.0,0.00164]
[1730483487296,0.59199202,69794.0,69793.0,0.00164]
[1730483487520,0.59198846,69794.0,69793.0,0.00164]
[1730483487767,0.57872657,69794.0,69793.0,0.00164]
[1730483488466,0.59198725,69794.0,69793.0,0.00164]
[1730483488692,0.45350995,69794.0,69793.0,0.00164]
[1730483489132,0.44024927,69794.0,69793.0,0.00164]
[1730483489356,0.43051461,69794.0,69793.0,0.00164]
[1730483491885,0.19205936,69794.0,69793.0,0.00164]
[1730483492125,0.15755339,69794.0,69793.0,0.00164]
[1730483493046,0.36619648,69794.0,69793.0,0.00164]
[1730483493261,0.15755339,69794.0,69793.0,0.00164]
[1730483493480,0.15755339,69794.0,69793.0,0.20164]
[1730483493696,0.17878663,69794.0,69793.0,0.20164]
[1730483493913,0.15755339,69794.0,69793.0,0.20164]
[1730483494369,0.19207674,69794.0,69793.0,0.20164]
[1730483494578,0.17879853,69794.0,69793.0,0.20164]
[1730483495050,0.144278,69794.0,69793.0,0.20164]
[1730483495279,0.1575539,69794.0,69793.0,0.20164]
[1730483495509,0.17880452,69794.0,69793.0,0.20164]
[1730483495728,0.19208575,69794.0,69793.0,0.20164]
[1730483497136,0.17880452,69794.0,69793.0,0.20164]
[1730483498249,0.19210041,69794.0,69793.0,0.20164]
[1730483498716,0.144278,69794.0,69793.0,0.20164]
[1730483498923,0.19215635,69794.0,69793.0,0.19541651]
[1730483500888,0.4306116,69794.0,69793.0,0.19541651]
[1730483501355,0.5690889,69794.0,69793.0,0.19541651]
[1730483502486,0.53453776,69794.0,69793.0,0.19541651]
[1730483502702,0.56918851,69794.0,69793.0,0.19541651]
[1730483503162,0.417384,69794.0,69793.0,0.19705651]
[1730483504740,0.27892875,69794.0,69793.0,0.19705651]
[1730483506340,0.2923092,69794.0,69793.0,0.19705651]
[1730483507000,0.2923092,69794.0,69793.0,0.19083302]
[1730483507428,0.41742349,69794.0,69793.0,0.19083302]
[1730483507656,0.55590079,69794.0,69793.0,0.19083302]
[1730483508100,0.41742349,69794.0,69793.0,0.19083302]
[1730483508315,0.29231103,69794.0,69793.0,0.19083302]
[1730483508986,0.33675771,69794.0,69793.0,0.19083302]
[1730483509503,0.32341492,69794.0,69793.0,0.19083302]
[1730483509933,0.28872468,69794.0,69793.0,0.19083302]
[1730483510143,0.45152264,69794.0,69793.0,0.19083302]
[1730483510586,0.58997789,69794.0,69793.0,0.19083302]
[1730483512763,0.48487169,69794.0,69793.0,0.19083302]
[1730483512982,0.54851299,69794.0,69793.0,0.19083302]
[1730483513695,0.51382123,69794.0,69793.0,0.19083302]
[1730483513914,0.54851897,69794.0,69793.0,0.19083302]
[1730483514149,0.54870445,69794.0,69793.0,0.19083302]
[1730483514592,0.46187303,69794.0,69793.0,0.19083302]
[1730483514798,0.50524268,69794.0,69793.0,0.19083302]
[1730483515016,0.46269303,69794.0,69793.0,0.19083302]
[1730483515272,0.33758091,69794.0,69793.0,0.19083302]
[1730483516370,0.23758091,69794.0,69793.0,0.19083302]
[1730483517354,0.28013551,69794.0,69793.0,0.19083302]
[1730483517359,0.28018069,69794.0,69793.0,0.19083302]
[1730483517577,0.28037388,69794.0,69793.0,0.19083302]
[1730483517798,0.2359272,69794.0,69793.0,0.19083302]
[1730483518014,0.27968289,69794.0,69793.0,0.19083302]
[1730483518239,0.27968686,69794.0,69793.0,0.19083302]
[1730483518457,0.25735582,69794.0,69793.0,0.19083302]
[1730483518679,0.27883437,69794.0,69793.0,0.19083302]
[1730483518904,0.21461664,69794.0,69793.0,0.19083302]
[1730483519762,0.21361664,69794.0,69793.0,0.19083302]
[1730483520197,0.21361664,69794.0,69793.0,0.19383302]
[1730483520429,0.35036847,69794.0,69793.0,0.19383302]
[1730483520663,0.30228706,69794.0,69793.0,0.19383302]
[1730483520875,0.35051288,69794.0,69793.0,0.19383302]
[1730483521360,0.35051288,69794.0,69793.0,0.33711302]
[1730483521361,0.04904582,69794.0,69793.0,0.33711302]
[1730483521832,0.04904582,69794.0,69793.0,0.78316063]
[1730483522042,0.08742047,69806.0,69793.0,0.78316063]
[1730483522043,0.02142842,69803.0,69795.0,0.175]
[1730483522282,0.04366913,69806.0,69803.0,0.175]
[1730483522283,0.02141303,69805.0,69803.0,0.175]
[1730483522510,0.00082,69806.0,69803.0,0.175]
[1730483522511,0.00082,69806.0,69805.0,0.143256]
[1730483523427,0.00082,69806.0,69805.0,0.320556]
[1730483523963,0.00082,69806.0,69805.0,0.45901125]
[1730483524453,0.00082,69820.0,69819.0,0.242927]
[1730483524667,0.00082,69820.0,69819.0,0.320527]
[1730483525353,0.00082,69821.0,69819.0,0.31575525]
[1730483525598,0.00082,69821.0,69820.0,0.59577261]
[1730483525812,0.00082,69821.0,69820.0,0.46308025]
[1730483526474,0.00082,69821.0,69820.0,0.324625]
[1730483526914,0.00082,69821.0,69820.0,0.338625]
[1730483527124,0.00082,69821.0,69820.0,0.324625]
[1730483527590,0.00082,69821.0,69820.0,0.352625]
[1730483529150,0.00082,69821.0,69820.0,0.324625]
[1730483529578,0.00082,69821.0,69820.0,0.48708025]
[1730483529793,0.00082,69821.0,69820.0,0.47708025]
[1730483530253,0.00082,69821.0,69820.0,0.47608025]
[1730483530463,0.00082,69821.0,69820.0,0.49008025]
[1730483530891,0.00082,69821.0,69820.0,0.47608025]
[1730483531105,0.00082,69821.0,69820.0,0.46308025]
[1730483532210,0.2151571,69857.0,69840.0,0.1758]
[1730483532211,0.143177,69844.0,69840.0,0.1758]
[1730483532422,0.143177,69844.0,69840.0,0.318983]
[1730483532646,0.286332,69849.0,69840.0,0.1758]
[1730483532905,0.1,69844.0,69840.0,0.1758]
[1730483533116,0.14318,69843.0,69840.0,0.1758]
[1730483533545,0.14318,69843.0,69840.0,0.1808]
[1730483533767,0.143182,69841.0,69840.0,0.1808]
[1730483534202,0.1,69844.0,69840.0,0.1928]
[1730483534418,0.14318,69842.0,69840.0,0.1928]
[1730483534636,0.1,69844.0,69840.0,0.1928]
[1730483535057,0.287152,69847.0,69840.0,0.1928]
[1730483535058,0.000812,69847.0,69842.0,0.2151571]
[1730483535277,0.000812,69847.0,69840.0,0.1858]
[1730483535516,0.000812,69847.0,69842.0,0.143179]
[1730483535733,0.143173,69846.0,69842.0,0.143179]
[1730483535973,0.143172,69846.0,69841.0,0.143181]
[1730483536183,0.287155,69847.0,69840.0,0.1758]
[1730483536395,0.143174,69845.0,69840.0,0.1808]
[1730483536604,0.143176,69844.0,69840.0,0.333984]
[1730483536860,0.000812,69847.0,69842.0,0.2151571]
[1730483537072,0.000812,69847.0,69842.0,0.005]
[1730483537298,0.000812,69847.0,69843.0,0.429529]
[1730483537517,0.000812,69847.0,69844.0,0.143174]
[1730483538190,0.000812,69847.0,69843.0,0.286353]
[1730483538400,0.000812,69847.0,69845.0,0.143173]
[1730483539035,0.000812,69847.0,69846.0,0.143172]
[1730483540338,0.000812,69847.0,69843.0,0.143176]
[1730483540558,0.000812,69847.0,69844.0,0.148174]
[1730483540788,0.000812,69847.0,69846.0,0.005]
[1730483541220,0.000812,69847.0,69846.0,0.003]
[1730483541429,0.000812,69847.0,69846.0,0.146172]
[1730483541641,0.000812,69847.0,69846.0,0.143172]
[1730483541854,0.000812,69847.0,69843.0,0.294355]
[1730483542121,0.000812,69847.0,69845.0,0.143173]
[1730483542345,0.000812,69847.0,69846.0,0.143172]
[1730483542565,0.000812,69847.0,69845.0,0.143173]
[1730483543001,0.286351,69845.0,69840.0,0.1758]
[1730483543212,0.000812,69847.0,69840.0,0.1758]
[1730483543480,0.143179,69843.0,69840.0,0.1758]
[1730483543695,0.143182,69841.0,69840.0,0.1758]
[1730483543934,0.13269236,69846.0,69845.0,0.007]
[1730483544145,0.16722396,69846.0,69845.0,0.015]
[1730483544357,0.16722396,69846.0,69845.0,0.007]
[1730483544358,0.75561487,69846.0,69845.0,0.007]
[1730483544563,0.143202,69831.0,69824.0,0.0983]
[1730483544797,0.243182,69841.0,69840.0,0.003]
[1730483545002,0.386368,69840.0,69827.0,0.14321]
[1730483545206,0.143201,69832.0,69825.0,0.286426]
[1730483545417,0.01329073,69831.0,69829.0,0.143206]
[1730483545637,0.01329073,69831.0,69827.0,0.286419]
[1730483546084,0.286383,69837.0,69830.0,0.143204]
[1730483546085,0.143197,69834.0,69830.0,0.143204]
[1730483546295,0.01331138,69833.0,69827.0,0.286419]
[1730483546510,0.01331138,69832.0,69824.0,0.0983]
[1730483546724,0.01331138,69831.0,69830.0,0.223904]
[1730483546941,0.01331138,69831.0,69830.0,0.36635925]
[1730483547161,0.2151571,69841.0,69832.0,0.572802]
[1730483547376,0.01332386,69840.0,69832.0,0.286401]
[1730483547600,0.01332386,69839.0,69838.0,0.143187]
[1730483547831,0.03464197,69839.0,69838.0,0.143187]
[1730483548051,0.17782997,69839.0,69834.0,0.143195]
[1730483548268,0.14318,69842.0,69837.0,0.143189]
[1730483548554,0.01333766,69838.0,69837.0,0.143189]
[1730483548761,0.04801501,69838.0,69832.0,0.286401]
[1730483548975,0.04801501,69837.0,69836.0,0.143191]
[1730483549462,0.04801501,69837.0,69836.0,0.314191]
[1730483549695,0.01333744,69837.0,69836.0,0.45264625]
[1730483550862,0.01333744,69837.0,69836.0,0.46564625]
[1730483551106,0.01333744,69837.0,69836.0,0.47864625]